fUST/lending_fUST_20241123
["ID","MTS","AMOUNT","RATE_DAILY","PERIOD"]
[343087542,1732343432440,-381.5115145,0.0001883,2]
[343087543,1732343432453,-1118.43645,0.0001883,2]
[343087594,1732343438523,-499.77566816,0.0001883,2]
[343087599,1732343438556,-1250.19261114,0.0001883,2]
[343087601,1732343438565,-300.0,0.00019287,2]
[343087603,1732343438575,-300.0,0.00019287,2]
[343087605,1732343438584,-9785.566976,0.00019288,2]
[343087615,1732343438674,-692.76450764,0.00019288,2]
[343087617,1732343438683,-135.23549234,0.00019512,2]
[343087768,1732343440241,-172.709065,0.00018641,2]
[343087770,1732343440251,-1593.13241203,0.00019512,2]
[343087772,1732343440261,-183.0058389,0.00019536,2]
[343087775,1732343440270,-10478.33148364,0.00019576,2]
[343087777,1732343440279,-500.0,0.00019591,2]
[343087780,1732343440289,-500.0,0.00019591,2]
[343087782,1732343440298,-500.0,0.00019591,2]
[343087784,1732343440307,-500.0,0.00019591,2]
[343087786,1732343440316,-500.0,0.00019591,2]
[343087795,1732343440463,-529.33,0.00019591,2]
[343087796,1732343440474,-417.14,0.00019602,3]
[343087797,1732343440485,-206.63075804,0.00019612,2]
[343087799,1732343440494,-638.04,0.00019612,2]
[343087800,1732343440504,-500.0,0.00019612,2]
[343087802,1732343440513,-11683.19,0.00019612,2]
[343087804,1732343440523,-166.10552771,0.00019612,2]
[343087806,1732343440533,-8358.65,0.00019612,2]
[343087808,1732343440543,-1921.22994551,0.00019612,2]
[343087811,1732343440555,-916.70005449,0.00019612,2]
[343087813,1732343440565,-1754.2,0.00019612,2]
[343087815,1732343440574,-500.0,0.00019612,2]
[343087816,1732343440583,-1785.2,0.00019612,2]
[343087818,1732343440593,-500.0,0.00019612,2]
[343087820,1732343440603,-500.0,0.00019612,2]
[343087822,1732343440615,-561.94,0.00019612,2]
[343087824,1732343440625,-52884.16,0.00019612,2]
[343087826,1732343440635,-1035.99,0.00019612,2]
[343087828,1732343440645,-690.24,0.00019612,2]
[343087830,1732343440655,-310.01804846,0.00019636,2]
[343087832,1732343440664,-183.0058389,0.00019645,2]
[343087834,1732343440674,-183.0058389,0.00019754,2]
[343087836,1732343440683,-233.01590285,0.00019799,2]
[343087838,1732343440693,-233.01590282,0.00019801,2]
[343087840,1732343440703,-233.01590282,0.00019802,2]
[343087842,1732343440713,-233.01590282,0.00019804,2]
[343087844,1732343440724,-233.01590282,0.00019805,2]
[343087846,1732343440736,-1063.82609168,0.00019806,2]
[343087848,1732343440746,-499.99999999,0.00019806,2]
[343087850,1732343440755,-500.0,0.00019806,2]
[343087852,1732343440764,-500.0,0.00019806,2]
[343087854,1732343440774,-446.02672368,0.00019806,2]
[343087856,1732343440785,-500.0,0.00019806,2]
[343087858,1732343440795,-456.60788977,0.00019806,2]
[343087860,1732343440810,-43.39211023,0.00019806,2]
[343087862,1732343440819,-240.31339506,0.00019806,2]
[343087864,1732343440831,-175.69207312,0.00019806,2]
[343087867,1732343440841,-206.04065459,0.00019806,2]
[343087869,1732343440853,-293.95934541,0.00019806,2]
[343087871,1732343440864,-500.0,0.00019806,2]
[343087873,1732343440874,-62.64589459,0.00019806,2]
[343087875,1732343440886,-437.35410541,0.00019806,2]
[343087877,1732343440897,-131.73703959,0.00019806,2]
[343087879,1732343440908,-38.643133,0.00019806,2]
[343087881,1732343440919,-443.305382,0.00019806,2]
[343088164,1732343443804,-500.0,0.00019612,2]
[343088166,1732343443816,-145.21184017,0.00019806,2]
[343088168,1732343443825,-500.0,0.00019806,2]
[343088170,1732343443835,-500.0,0.00019806,2]
[343088172,1732343443844,-500.0,0.00019806,2]
[343088174,1732343443854,-500.0,0.00019806,2]
[343088176,1732343443864,-500.0,0.00019806,2]
[343088178,1732343443873,-242.16110285,0.00019806,2]
[343088180,1732343443886,-322.60587967,0.00019806,2]
[343088182,1732343443899,-275.03369254,0.00019806,2]
[343088184,1732343443908,-500.0,0.00019806,2]
[343088186,1732343443918,-500.0,0.00019806,2]
[343088188,1732343443927,-224.69073983,0.00019806,2]
[343088190,1732343443936,-322.25813131,0.00019807,2]
[343088194,1732343443965,-12706.24307372,0.00019807,2]
[343088196,1732343443977,-23889.51128172,0.00019807,2]
[343088198,1732343443989,-6067.96292317,0.00019807,2]
[343088428,1732343446320,-302.10760005,0.00019591,2]
[343088430,1732343446332,-202.16321389,0.00019591,2]
[343088432,1732343446341,-500.0,0.00019591,2]
[343088434,1732343446351,-19297.53346611,0.00019807,2]
[343088437,1732343446365,-187716.49112397,0.00019807,2]
[343088439,1732343446375,-10478.33148364,0.00019854,2]
[343088441,1732343446384,-500.0,0.00019865,2]
[343088443,1732343446394,-500.0,0.00019865,2]
[343088445,1732343446404,-500.0,0.00019865,2]
[343088447,1732343446414,-500.0,0.00019865,2]
[343088449,1732343446424,-500.0,0.00019865,2]
[343088451,1732343446433,-529.33,0.00019865,2]
[343088453,1732343446443,-500.0,0.00019865,2]
[343088455,1732343446453,-638.04,0.00019886,2]
[343088457,1732343446463,-500.0,0.00019886,2]
[343088459,1732343446472,-11683.19,0.00019886,2]
[343088461,1732343446482,-8358.65,0.00019886,2]
[343088463,1732343446491,-2837.93,0.00019886,2]
[343088465,1732343446501,-1754.2,0.00019886,2]
[343088468,1732343446510,-500.0,0.00019886,2]
[343088471,1732343446519,-1785.2,0.00019886,2]
[343088474,1732343446529,-500.0,0.00019886,2]
[343088476,1732343446538,-500.0,0.00019886,2]
[343088478,1732343446547,-561.94,0.00019886,2]
[343088480,1732343446557,-52884.16,0.00019886,2]
[343088482,1732343446566,-1035.99,0.00019886,2]
[343088484,1732343446576,-690.24,0.00019886,2]
[343088486,1732343446586,-151.0,0.00019886,2]
[343088488,1732343446595,-500.0,0.00019886,2]
[343088490,1732343446605,-2322.05591036,0.00019899,2]
[343088492,1732343446615,-5000.0,0.00019904,2]
[343088494,1732343446624,-5000.0,0.00019904,2]
[343088496,1732343446634,-555.75352736,0.00019904,2]
[343088498,1732343446643,-500.0,0.00019904,2]
[343088499,1732343446653,-500.0,0.00019904,2]
[343088501,1732343446662,-233.84037266,0.00019904,2]
[343088502,1732343446671,-1852.64,0.00019904,2]
[343088504,1732343446680,-1908.75,0.00019904,2]
[343088505,1732343446689,-500.0,0.00019904,2]
[343088507,1732343446699,-500.0,0.00019904,2]
[343088508,1732343446708,-500.0,0.00019904,2]
[343088510,1732343446718,-500.0,0.00019904,2]
[343088512,1732343446727,-500.0,0.00019904,2]
[343088513,1732343446739,-831.96,0.00019904,2]
[343088515,1732343446748,-1739.71,0.00019904,2]
[343088516,1732343446757,-389.71889301,0.00019904,2]
[343088518,1732343446766,-500.0,0.00019904,2]
[343088519,1732343446776,-500.0,0.00019904,2]
[343088521,1732343446786,-891.27,0.00019904,2]
[343088522,1732343446795,-764.69,0.00019904,2]
[343088524,1732343446806,-500.0,0.00019904,2]
[343088525,1732343446815,-523.34386473,0.00019904,2]
[343088527,1732343446824,-500.0,0.00019904,2]
[343088528,1732343446834,-1024.97,0.00019904,2]
[343088530,1732343446843,-1544.56778347,0.00019904,2]
[343089671,1732343521919,164.503818,0.00013973,2]
[343089739,1732344577147,500.02,0.00016,2]
[343089889,1732344638687,-581.64420418,0.00017038,2]
[343090053,1732344640392,-172.96027682,0.00017038,2]
[343090055,1732344640402,-2043.0901794,0.00017175,2]
[343090057,1732344640412,-920.220682,0.00017435,2]
[343090059,1732344640421,-173.1855268,0.00017584,2]
[343090061,1732344640431,-1747.6771923,0.00017624,2]
[343090063,1732344640440,-417.2858663,0.00017684,2]
[343090065,1732344640450,-949.7876045,0.00017685,2]
[343090067,1732344640459,-2006.9853112,0.00017742,2]
[343090069,1732344640469,-301.038972,0.00017775,2]
[343090071,1732344640479,-250.0,0.00018199,2]
[343090073,1732344640488,-235.97,0.00018308,2]
[343090075,1732344640498,-125.5572992,0.00018315,2]
[343090164,1732344643855,-174.4427008,0.00018315,2]
[343090167,1732344643865,-300.0,0.00018316,2]
[343090170,1732344643880,-503.84813485,0.00018317,2]
[343090172,1732344643889,-20819.70916246,0.00018318,2]
[343090174,1732344643901,-2334.04450874,0.00018318,2]
[343090177,1732344643914,-1027.01972289,0.00018318,2]
[343090181,1732344643926,-719.22660591,0.00018318,2]
[343090183,1732344643935,-405.97973709,0.0001836,2]
[343090291,1732344744315,1503.34,0.00029615,120]
[343090343,1732345700243,-377.30224,0.00017037,2]
[343090344,1732345700275,-300.0,0.00017167,2]
[343090345,1732345700308,-300.0,0.00017167,2]
[343090346,1732345700339,-250.0,0.00017168,2]
[343090347,1732345700362,-377.30224,0.00017168,2]
[343090348,1732345700373,-300.0,0.00017168,2]
[343090349,1732345700418,-300.0,0.00017168,2]
[343090350,1732345700443,-250.0,0.00017168,2]
[343090351,1732345700468,-5319.39552,0.00017168,2]
[343090357,1732345751309,-183.4748385,0.00016278,2]
[343090358,1732345751341,-300.0,0.00017167,2]
[343090359,1732345751373,-300.0,0.00017167,2]
[343090360,1732345751391,-183.4748385,0.00017168,2]
[343090361,1732345751403,-300.0,0.00017168,2]
[343090362,1732345751413,-300.0,0.00017168,2]
[343090363,1732345751423,-533.050323,0.00017168,2]
[343090411,1732345832764,-871.5002,0.00017168,2]
[343091018,1732345838863,-899.1100003,0.00017168,2]
[343091020,1732345838875,-544.19082374,0.00017168,2]
[343091826,1732345846988,-405.18420511,0.00017168,2]
[343092849,1732345962881,193.66,0.00010959,2]
[343092879,1732345973392,161.39,0.00010959,2]
[343092902,1732345983887,806.95,0.00010959,2]
[343094083,1732347032982,-200.692648,0.00016356,2]
[343094084,1732347032993,-188.65112,0.00016405,2]
[343094085,1732347033003,-18.67022808,0.00016413,2]
[343094086,1732347033034,-7036.07168492,0.00016413,2]
[343094087,1732347033044,-1277.3483291,0.00016451,2]
[343094088,1732347033053,-300.0,0.0001672,2]
[343094089,1732347033062,-300.0,0.0001672,2]
[343094090,1732347033071,-2375.7848304,0.00016721,2]
[343094091,1732347033081,-1472.26997899,0.00016784,2]
[343094092,1732347033091,-200.692648,0.0001704,2]
[343094093,1732347033100,-200.692648,0.00017725,2]
[343094094,1732347033110,-153.0,0.000178,2]
[343094095,1732347033121,-309.8490532,0.000178,2]
[343094096,1732347033131,-1368.21912212,0.000179,2]
[343094097,1732347033141,-1368.21912209,0.0001795,2]
[343094098,1732347033151,-292.72690722,0.00018,2]
[343094099,1732347033162,-99265.23,0.00018,2]
[343094100,1732347033172,-164.98,0.00018,2]
[343094101,1732347033183,-157.32,0.00018,2]
[343094102,1732347033192,-157.32,0.00018,2]
[343094103,1732347033202,-157.32,0.00018,2]
[343094104,1732347033212,-1368.21912209,0.00018,2]
[343094105,1732347033221,-1368.21912209,0.0001805,2]
[343094106,1732347033231,-211.18492165,0.000181,2]
[343094107,1732347033241,-174.7628839,0.000181,2]
[343094108,1732347033252,-312.3162539,0.000181,2]
[343094109,1732347033262,-153.0,0.000181,2]
[343094110,1732347033273,-1368.21912209,0.000181,2]
[343094111,1732347033283,-264.33995082,0.00018173,2]
[343094112,1732347033296,-500.0,0.00018173,2]
[343094113,1732347033306,-500.0,0.00018173,2]
[343094114,1732347033317,-500.0,0.00018173,2]
[343094115,1732347033327,-397.58764665,0.00018173,2]
[343094116,1732347033337,-501.88103754,0.00018173,2]
[343094117,1732347033348,-500.0,0.00018173,2]
[343094118,1732347033372,-160.0850086,0.00018173,2]
[343094119,1732347033385,-500.0,0.00018173,2]
[343094120,1732347033395,-500.0,0.00018173,2]
[343094121,1732347033406,-500.0,0.00018173,2]
[343094122,1732347033417,-500.0,0.00018173,2]
[343094123,1732347033428,-169.512772,0.00018199,2]
[343094124,1732347033440,-192.52358478,0.00018199,2]
[343094125,1732347033450,-500.0,0.00018199,2]
[343094126,1732347033461,-225.82411577,0.00018199,2]
[343094127,1732347033473,-500.0,0.00018199,2]
[343094128,1732347033483,-207.28351788,0.00018199,2]
[343094129,1732347033494,-454.27969135,0.00018199,2]
[343094130,1732347033506,-500.0,0.00018199,2]
[343094131,1732347033517,-500.0,0.00018199,2]
[343094132,1732347033528,-500.0,0.00018199,2]
[343094133,1732347033539,-500.0,0.00018199,2]
[343094134,1732347033550,-500.0,0.00018199,2]
[343094135,1732347033560,-500.0,0.00018199,2]
[343094136,1732347033571,-500.0,0.00018199,2]
[343094137,1732347033582,-500.0,0.00018199,2]
[343094138,1732347033592,-550.0,0.00018199,2]
[343094139,1732347033603,-500.0,0.00018199,2]
[343094140,1732347033613,-500.0,0.00018199,2]
[343094141,1732347033625,-500.0,0.00018199,2]
[343094142,1732347033635,-200.0,0.00018199,2]
[343094143,1732347033646,-500.0,0.00018199,2]
[343094144,1732347033656,-288265.1060349,0.000182,2]
[343094145,1732347033672,-5098.7549316,0.000182,2]
[343094175,1732347039172,-9815.44118187,0.000182,2]
[343094193,1732347040737,-19765.56999998,0.000182,2]
[343094209,1732347043918,-670.90132994,0.000182,2]
[343094210,1732347044062,-493.405,0.000182,2]
[343094211,1732347044124,-5930.51133836,0.000182,2]
[343094457,1732347387899,10000.0,0.00022,30]
[343094535,1732347998385,105039.2124283,0.0001,2]
[343094536,1732347998408,200000.0,0.0001,2]
[343094537,1732347998434,26167.3408702,0.0001,2]
[343094549,1732348083663,160.3247311,0.00013973,2]
[343094566,1732348232108,-188.6511217,0.00017004,2]
[343094567,1732348232118,-405.3119,0.00017052,2]
[343094568,1732348232129,-249.0369783,0.00017142,2]
[343094569,1732348232140,-50.9630217,0.00017142,2]
[343094570,1732348232152,-385.00888297,0.00017143,2]
[343094576,1732348232239,-20858.88141583,0.00017143,2]
[343094579,1732348232248,-405.3119,0.00017737,2]
[343094580,1732348232259,-164.98,0.00017836,2]
[343094581,1732348232269,-428.38480225,0.000181,2]
[343094582,1732348232278,-32527.09073372,0.000181,2]
[343094583,1732348232289,-500.52929033,0.00018173,2]
[343094584,1732348232299,-500.41981932,0.00018173,2]
[343094585,1732348232308,-159.8227708,0.00018173,2]
[343094586,1732348232317,-500.5166134,0.00018173,2]
[343094587,1732348232327,-421.56769706,0.00018173,2]
[343094624,1732348238121,-1617.95426478,0.00018073,2]
[343094625,1732348238131,-78.43230294,0.00018173,2]
[343094626,1732348238141,-500.0,0.00018173,2]
[343094631,1732348238298,-501.20262715,0.00018173,2]
[343094632,1732348238311,-558.24392497,0.00018173,2]
[343094633,1732348238322,-500.0,0.00018173,2]
[343094634,1732348238332,-202.07702104,0.00018173,2]
[343094635,1732348238343,-500.0,0.00018173,2]
[343094636,1732348238354,-157.08836831,0.00018173,2]
[343094637,1732348238364,-500.0,0.00018173,2]
[343094638,1732348238374,-500.0,0.00018173,2]
[343094639,1732348238385,-500.0,0.00018173,2]
[343094640,1732348238395,-500.23505291,0.00018173,2]
[343094641,1732348238407,-500.0,0.00018173,2]
[343094642,1732348238417,-500.0,0.00018173,2]
[343094643,1732348238428,-395.98861059,0.00018173,2]
[343094644,1732348238438,-500.0,0.00018199,2]
[343094645,1732348238449,-500.0,0.00018199,2]
[343094646,1732348238459,-433.60578242,0.00018199,2]
[343094647,1732348238469,-500.0,0.00018199,2]
[343094648,1732348238479,-500.0,0.00018199,2]
[343094649,1732348238489,-500.0,0.00018199,2]
[343094650,1732348238499,-500.0,0.00018199,2]
[343094651,1732348238509,-167.63384103,0.00018199,2]
[343094652,1732348238520,-500.0,0.00018199,2]
[343094653,1732348238530,-500.0,0.00018199,2]
[343094654,1732348238540,-500.0,0.00018199,2]
[343094655,1732348238550,-500.0,0.00018199,2]
[343094656,1732348238561,-500.0,0.00018199,2]
[343094657,1732348238571,-485.96935913,0.00018199,2]
[343094658,1732348238581,-500.0,0.00018199,2]
[343094659,1732348238590,-500.0,0.00018199,2]
[343094660,1732348238600,-500.0,0.00018199,2]
[343094661,1732348238610,-500.0,0.00018199,2]
[343094662,1732348238619,-500.0,0.00018199,2]
[343094663,1732348238629,-500.0,0.00018199,2]
[343094664,1732348238642,-280.78701576,0.00018199,2]
[343094719,1732348243094,-219.21298424,0.00018199,2]
[343094720,1732348243104,-500.0,0.00018199,2]
[343094721,1732348243114,-500.0,0.00018199,2]
[343094722,1732348243124,-500.0,0.00018199,2]
[343094723,1732348243134,-500.0,0.00018199,2]
[343094724,1732348243143,-334.98680972,0.00018199,2]
[343094726,1732348243153,-500.0,0.00018199,2]
[343094728,1732348243165,-500.0,0.00018199,2]
[343094730,1732348243174,-500.0,0.00018199,2]
[343094733,1732348243184,-500.0,0.00018199,2]
[343094735,1732348243194,-500.0,0.00018199,2]
[343094737,1732348243205,-500.0,0.00018199,2]
[343094738,1732348243217,-500.0,0.00018199,2]
[343094739,1732348243226,-500.0,0.00018199,2]
[343094740,1732348243236,-500.0,0.00018199,2]
[343094741,1732348243247,-500.0,0.00018199,2]
[343094742,1732348243258,-576.09888053,0.00018199,2]
[343094743,1732348243268,-500.0,0.00018199,2]
[343094744,1732348243278,-500.0,0.00018199,2]
[343094745,1732348243288,-498.22233115,0.00018199,2]
[343094746,1732348243300,-500.0,0.00018199,2]
[343094747,1732348243311,-24503.45262201,0.000182,2]
[343095086,1732348256446,20000.0,0.00026,60]
[343095096,1732348867479,73672.3343987,0.0001,2]
[343095097,1732348867521,14103.82106193,0.0001,2]
[343095098,1732348867555,20000.0,0.0001,2]
[343095099,1732348867590,20000.0,0.0001,2]
[343095174,1732349432128,-300.0,9.999e-05,2]
[343095175,1732349432139,-822.00368084,0.0001,2]
[343095176,1732349432149,-18447.36696627,0.0001,2]
[343095177,1732349432162,-5416.28879372,0.0001,2]
[343095178,1732349432173,-137917.49495729,0.0001,2]
[343095179,1732349432232,-6699.4526619,0.0001,2]
[343095180,1732349432242,-420.0,0.00010999,2]
[343095181,1732349432252,-587.0,0.00012099,2]
[343095182,1732349432263,-1111.14384466,0.000129,2]
[343095186,1732349440031,-304.56613704,0.000129,2]
[343095187,1732349440041,-1415.70998165,0.000129,2]
[343095188,1732349440051,-823.0,0.00013309,2]
[343095189,1732349440060,-500.0,0.00013698,2]
[343095190,1732349440070,-500.0,0.00013698,2]
[343095191,1732349440081,-500.0,0.00013698,2]
[343095192,1732349440091,-520.66326213,0.00013698,2]
[343095193,1732349440101,-500.0,0.00013698,2]
[343095194,1732349440111,-500.0,0.00013698,2]
[343095195,1732349440121,-260.38823522,0.00013698,2]
[343095196,1732349440131,-500.0,0.00013699,2]
[343095197,1732349440144,-500.0,0.00013699,2]
[343095198,1732349440153,-80.17238396,0.00013699,2]
[343095200,1732349443145,-355.7336477,0.00013699,2]
[343095201,1732349443155,-1415.70998165,0.0001441,2]
[343095202,1732349443164,-1152.0,0.0001464,2]
[343095203,1732349443173,-202.65595,0.00015996,2]
[343095204,1732349443182,-1024.49180579,0.00016103,2]
[343095219,1732349446145,-530.88,0.00016103,2]
[343095907,1732349594020,160.0,6.03e-05,2]
[343095931,1732350115308,209.21390758,0.00029614,120]
[343096260,1732350635026,-193.66,0.00010959,2]
[343096262,1732350635038,-161.38,0.00010959,2]
[343096264,1732350635048,-806.94,0.00010959,2]
[343096266,1732350635058,-2616.6476064,0.00016485,2]
[343096268,1732350635067,-1266.14637796,0.00016527,2]
[343096309,1732350635438,-1441.5067269,0.00016527,2]
[343096352,1732350638438,-654.77884324,0.00016527,2]
[343096353,1732350638448,-202.65595,0.00016589,2]
[343096354,1732350638457,-250.0,0.00016665,2]
[343096355,1732350638467,-300.0,0.00016785,2]
[343096356,1732350638476,-300.0,0.00016786,2]
[343096357,1732350638486,-9446.7799885,0.00016792,2]
[343096358,1732350638495,-153.0,0.000174,2]
[343096360,1732350638505,-156.4594035,0.000174,2]
[343096362,1732350638514,-153.0,0.000174,2]
[343096364,1732350638524,-153.0,0.000174,2]
[343096365,1732350638533,-153.0,0.000174,2]
[343096366,1732350638543,-153.0,0.000174,2]
[343096367,1732350638553,-579.73225846,0.00017678,2]
[343096368,1732350638562,-300.224466,0.000177,2]
[343096369,1732350638571,-153.0,0.000177,2]
[343096370,1732350638581,-153.0,0.000177,2]
[343096371,1732350638592,-153.0,0.000177,2]
[343096372,1732350638601,-153.0,0.000177,2]
[343096373,1732350638611,-153.0,0.000177,2]
[343096374,1732350638620,-153.0,0.000177,2]
[343096375,1732350638630,-153.0,0.000177,2]
[343096376,1732350638639,-153.0,0.000177,2]
[343096377,1732350638652,-153.0,0.000177,2]
[343096378,1732350638661,-153.0,0.000177,2]
[343096379,1732350638671,-153.0,0.000179,2]
[343096380,1732350638680,-153.0,0.000179,2]
[343096381,1732350638689,-153.0,0.000179,2]
[343096382,1732350638699,-153.0,0.000179,2]
[343096383,1732350638709,-724.82661678,0.00017999,2]
[343096391,1732350640140,-363.98565259,0.00017999,2]
[343096392,1732350640153,-4228.32439,0.00018,2]
[343096393,1732350640163,-398.36763588,0.00018,2]
[343096394,1732350640173,-398.36763586,0.00018025,2]
[343096395,1732350640182,-398.36763586,0.0001805,2]
[343096396,1732350640191,-398.36763586,0.00018075,2]
[343096397,1732350640200,-500.0,0.00018099,2]
[343096398,1732350640209,-500.0,0.00018099,2]
[343096399,1732350640219,-500.0,0.00018099,2]
[343096400,1732350640228,-500.0,0.00018099,2]
[343096401,1732350640238,-273.53305609,0.00018099,2]
[343096402,1732350640247,-500.0,0.00018099,2]
[343096403,1732350640257,-159.54511463,0.00018099,2]
[343096404,1732350640266,-500.0,0.00018099,2]
[343096405,1732350640276,-172.66208483,0.00018099,2]
[343096406,1732350640285,-333.5495654,0.00018099,2]
[343096407,1732350640306,-166.4504346,0.00018099,2]
[343096408,1732350640316,-286.95158186,0.00018099,2]
[343096433,1732350643351,-213.04841814,0.00018099,2]
[343096434,1732350643361,-500.0,0.00018099,2]
[343096435,1732350643371,-500.0,0.00018099,2]
[343096436,1732350643380,-500.0,0.00018099,2]
[343096437,1732350643389,-500.0,0.00018099,2]
[343096438,1732350643401,-500.0,0.00018099,2]
[343096439,1732350643411,-500.0,0.00018099,2]
[343096440,1732350643421,-500.0,0.00018099,2]
[343096442,1732350643431,-500.0,0.00018099,2]
[343096443,1732350643441,-500.0,0.00018099,2]
[343096444,1732350643452,-626.05137001,0.000181,2]
[343096445,1732350643461,-372.51905469,0.000181,2]
[343096465,1732350704299,195.05080352,0.00025,60]
[343096478,1732351440733,936.75,0.00026,60]
[343096577,1732351835724,-398.92,0.00010959,2]
[343096578,1732351835737,-200.0,0.00013973,2]
[343096579,1732351835750,-300.0,0.00016948,2]
[343096580,1732351835763,-15075.60611597,0.00016949,2]
[343096581,1732351835780,-6862.53949643,0.00016949,2]
[343096582,1732351835792,-417.36758001,0.000179,2]
[343096583,1732351835806,-43906.46691634,0.000179,2]
[343096584,1732351835819,-503.84813485,0.00017999,2]
[343096585,1732351835831,-500.0,0.00017999,2]
[343096586,1732351835845,-500.0,0.00017999,2]
[343096587,1732351835858,-500.0,0.00017999,2]
[343096588,1732351835871,-352.51800943,0.00017999,2]
[343096589,1732351835884,-500.0,0.00017999,2]
[343096590,1732351835897,-500.0,0.00017999,2]
[343096591,1732351835910,-500.0,0.00017999,2]
[343096592,1732351835924,-500.0,0.00017999,2]
[343096593,1732351835942,-500.0,0.00017999,2]
[343096594,1732351835956,-500.0,0.00017999,2]
[343096595,1732351835970,-500.0,0.00017999,2]
[343096596,1732351835984,-368.48899248,0.00017999,2]
[343096597,1732351835998,-500.0,0.00017999,2]
[343096598,1732351836011,-500.0,0.00017999,2]
[343096599,1732351836024,-500.0,0.00017999,2]
[343096600,1732351836036,-426.13312017,0.00017999,2]
[343096601,1732351836045,-500.0,0.00017999,2]
[343096602,1732351836055,-500.0,0.00017999,2]
[343096603,1732351836064,-500.0,0.00017999,2]
[343096604,1732351836073,-500.0,0.00017999,2]
[343096605,1732351836083,-165005.63775031,0.00018,2]
[343096606,1732351836279,-1128.2815,0.00018,2]
[343096607,1732351836323,-4422.74327353,0.00018,2]
[343096648,1732351838542,-6760.00000002,0.00018,2]
[343096845,1732351843665,-4052.47774484,0.00018,2]
[343097297,1732353032935,-369.03,0.00010959,2]
[343097299,1732353032945,-202.926964,0.00013973,2]
[343097300,1732353032955,-300.0,0.00016363,2]
[343097301,1732353032964,-300.0,0.00016363,2]
[343097302,1732353032974,-16829.6307977,0.00016364,2]
[343097303,1732353032983,-2348.4373392,0.00016453,2]
[343097304,1732353032992,-267.377303,0.00016951,2]
[343097305,1732353033002,-10504.80570193,0.00017548,2]
[343097306,1732353033011,-323.48661293,0.00017633,2]
[343097307,1732353033020,-212.655094,0.000177,2]
[343097308,1732353033030,-153.0,0.000177,2]
[343097309,1732353033039,-212.655094,0.000177,2]
[343097310,1732353033051,-153.0,0.000177,2]
[343097311,1732353033061,-153.0,0.000177,2]
[343097312,1732353033070,-212.655094,0.000177,2]
[343097313,1732353033080,-212.655094,0.000177,2]
[343097315,1732353033090,-212.655094,0.000177,2]
[343097317,1732353033100,-433.4241762,0.00017778,2]
[343097319,1732353033109,-37179.9588436,0.00017807,2]
[343097321,1732353033118,-323.0,0.00017884,2]
[343097323,1732353033128,-1496.44701263,0.000179,2]
[343097325,1732353033138,-153.0,0.00018,2]
[343097327,1732353033147,-212.655094,0.00018,2]
[343097329,1732353033156,-153.0,0.00018,2]
[343097331,1732353033166,-212.655094,0.00018,2]
[343097333,1732353033175,-176.9,0.00018,2]
[343097335,1732353033187,-187.37538179,0.00018,2]
[343097337,1732353033197,-187.37538179,0.0001805,2]
[343097339,1732353033207,-176.9,0.0001809,2]
[343097341,1732353033216,-278.24505333,0.00018099,2]
[343097343,1732353033226,-3203.80719026,0.00018099,2]
[343097345,1732353033236,-500.0,0.00018099,2]
[343097347,1732353033245,-207.60988805,0.00018099,2]
[343097349,1732353033255,-500.0,0.00018099,2]
[343097351,1732353033265,-500.0,0.00018099,2]
[343097353,1732353033274,-500.0,0.00018099,2]